fUSD/lending_fUSD_20240513
["ID","MTS","AMOUNT","RATE_DAILY","PERIOD"]
[326922451,1715587839882,-151.0,0.00012879,2]
[326922452,1715587839892,-1668.16,0.00012879,2]
[326922453,1715587839902,-1668.16,0.00012879,2]
[326922454,1715587839911,-1668.16,0.00012879,2]
[326922455,1715587839921,-1668.16,0.00012879,2]
[326922456,1715587839930,-1668.16,0.00012879,2]
[326922457,1715587839941,-1668.16,0.00012879,2]
[326922458,1715587839950,-1668.16,0.00012879,2]
[326922459,1715587839960,-1668.16,0.00012879,2]
[326922460,1715587839969,-1668.16,0.00012879,2]
[326922461,1715587839980,-151.0,0.00012879,2]
[326922462,1715587839990,-151.0,0.00012879,2]
[326922463,1715587839999,-151.0,0.00012879,2]
[326922464,1715587840008,-344.180026,0.00012879,2]
[326922465,1715587840018,-587.95587,0.00012879,2]
[326922466,1715587840027,-344.180026,0.00012879,2]
[326922467,1715587840036,-587.95587,0.00012879,2]
[326922468,1715587840046,-238.45443,0.00012879,2]
[326922469,1715587840056,-238.45443,0.00012879,2]
[326922470,1715587840065,-151.0,0.00012879,2]
[326922471,1715587840075,-151.0,0.00012879,2]
[326922472,1715587840084,-151.0,0.00012879,2]
[326922473,1715587840093,-151.0,0.00012879,2]
[326922474,1715587840103,-151.0,0.00012879,2]
[326922475,1715587840112,-151.0,0.00012879,2]
[326922476,1715587840121,-223.887142,0.00012879,2]
[326922477,1715587840131,-175.772022,0.00012879,2]
[326922478,1715587840140,-321.616461,0.00012879,2]
[326922479,1715587840149,-175.772022,0.00012879,2]
[326922480,1715587840159,-321.616461,0.00012879,2]
[326922481,1715587840169,-345.748557,0.00012879,2]
[326922482,1715587840178,-345.748557,0.00012879,2]
[326922483,1715587840189,-234.934895,0.00012879,2]
[326922484,1715587840199,-234.934895,0.00012879,2]
[326922485,1715587840208,-151.0,0.00012879,2]
[326922486,1715587840218,-151.0,0.00012879,2]
[326922487,1715587840227,-151.0,0.00012879,2]
[326922488,1715587840240,-151.0,0.00012879,2]
[326922489,1715587840249,-151.0,0.00012879,2]
[326922490,1715587840258,-255.397664,0.00012879,2]
[326922491,1715587840267,-255.397664,0.00012879,2]
[326922492,1715587840276,-151.0,0.00012879,2]
[326922493,1715587840285,-151.0,0.00012879,2]
[326922494,1715587840294,-293.162128,0.00012879,2]
[326922495,1715587840304,-2706.851639,0.00012879,2]
[326922496,1715587840314,-226.849215,0.00012879,2]
[326922497,1715587840324,-2706.851639,0.00012879,2]
[326922498,1715587840334,-278.210972,0.00012879,2]
[326922499,1715587840344,-278.210972,0.00012879,2]
[326922500,1715587840355,-151.0,0.00012879,2]
[326922501,1715587840366,-151.0,0.00012879,2]
[326922502,1715587840377,-151.0,0.00012879,2]
[326922503,1715587840387,-151.0,0.00012879,2]
[326922504,1715587840397,-500.0,0.00012879,2]
[326922505,1715587840406,-256.99290425,0.00012879,2]
[326922506,1715587840416,-290.510953,0.00012879,2]
[326922507,1715587840426,-479.944865,0.00012879,2]
[326922508,1715587840435,-479.944865,0.00012879,2]
[326922509,1715587840445,-151.0,0.00012879,2]
[326922510,1715587840454,-151.0,0.00012879,2]
[326922511,1715587840464,-151.0,0.00012879,2]
[326922512,1715587840474,-1103.98773,0.00012879,2]
[326922513,1715587840488,-1103.98773,0.00012879,2]
[326922514,1715587840498,-151.0,0.00012879,2]
[326922515,1715587840509,-1515.432594,0.00012879,2]
[326922516,1715587840523,-151.0,0.00012879,2]
[326922517,1715587840534,-1515.432594,0.00012879,2]
[326922518,1715587840543,-156.275849,0.00012879,2]
[326922519,1715587840553,-156.275849,0.00012879,2]
[326922520,1715587840563,-535.0,0.0001288,2]
[326922521,1715587840572,-162906.52684914,0.0001288,2]
[326922522,1715587840582,-811113.64396291,0.0001288,2]
[326922523,1715587840598,-1285.98966416,0.0001288,2]
[326922524,1715587840611,-7553.02806621,0.0001288,2]
[326922525,1715587840627,-2293.51931618,0.0001288,2]
[326922526,1715587840649,-70493.84499167,0.0001288,2]
[326922527,1715587840760,-1047.2,0.0001288,2]
[326922528,1715587840777,-1329.74,0.0001288,2]
[326922529,1715587840804,-295.47154834,0.0001288,2]
[326922530,1715587840820,-401124.18433301,0.0001288,2]
[326922570,1715587842980,-292.5,0.0001288,2]
[326922580,1715587843044,-622.22,0.0001288,2]
[326922590,1715587843109,-356.40331071,0.0001288,2]
[326922627,1715587845709,-195.94725207,0.00012878,2]
[326922628,1715587845719,-267.87087557,0.00012878,2]
[326922629,1715587845729,-294.60934225,0.00012879,2]
[326922630,1715587845741,-740.270056,0.00012879,2]
[326922631,1715587845750,-95777.1369459,0.0001288,2]
[326922632,1715587845763,-15659.63867213,0.0001288,2]
[326922633,1715587845791,-1440.39783507,0.0001288,2]
[326922634,1715587845803,-718.9950901,0.0001288,2]
[326922635,1715587845978,-6102.2210068,0.0001288,2]
[326922636,1715587846044,-150.0,0.00012628,2]
[326922637,1715587846055,-150.0,0.00012659,2]
[326922638,1715587846065,-303.11047143,0.00012758,2]
[326922639,1715587846074,-150.0,0.00012868,2]
[326922640,1715587846084,-3632.265,0.00012879,2]
[326922641,1715587846094,-22276.98106208,0.0001288,2]
[326922643,1715587846128,-150.0,0.00012725,2]
[326922644,1715587846138,-150.0,0.00012803,2]
[326922646,1715587846148,-2555.6819252,0.0001288,2]
[326922647,1715587846160,-1013.47824236,0.0001288,2]
[326922648,1715587846173,-1478.88611157,0.0001288,2]
[326922649,1715587846184,-3106.95,0.0001288,2]
[326922813,1715588714238,151.0,0.0001297,30]
[326922814,1715588714682,151.0,0.0001297,30]
[326922815,1715588714998,151.0,0.0001297,30]
[326922816,1715588715377,151.0,0.0001297,30]
[326922817,1715588715779,151.0,0.0001297,30]
[326922818,1715588716863,151.0,0.0001297,30]
[326922819,1715588717351,151.0,0.0001297,30]
[326922820,1715588718656,151.0,0.0001297,30]
[326922821,1715588719030,151.0,0.0001297,30]
[326922822,1715588719410,151.0,0.0001297,30]
[326922823,1715588719854,151.0,0.0001297,30]
[326922824,1715588720155,151.0,0.0001297,30]
[326922825,1715588722693,151.0,0.0001297,30]
[326922826,1715588723117,151.0,0.0001297,30]
[326922827,1715588723441,151.0,0.0001297,30]
[326922828,1715588723763,151.0,0.0001297,30]
[326922829,1715588724164,151.0,0.0001297,30]
[326922830,1715588724467,245.965286,0.0001297,30]
[326922834,1715588916331,282.15693226,0.00011463,2]
[326922919,1715589031915,-409.44014041,0.00011562,2]
[326922920,1715589031926,-184.26389925,0.00011563,2]
[326922921,1715589031935,-1533.08371307,0.00011661,2]
[326922922,1715589031945,-250.0,0.00011663,2]
[326922923,1715589031954,-175.39,0.00011688,2]
[326922924,1715589031964,-263.62296388,0.00011729,2]
[326922925,1715589031978,-133.17703612,0.00011729,2]
[326922926,1715589031990,-332.73753626,0.00011729,2]
[326922927,1715589032002,-39.19246374,0.00011729,2]
[326922928,1715589032012,-158.33,0.00011796,2]
[326922929,1715589032022,-784.88,0.00011804,2]
[326922930,1715589032032,-168.19,0.00011819,2]
[326922931,1715589032042,-603.2,0.00011834,2]
[326922932,1715589032052,-158.33,0.00011949,2]
[326922933,1715589032062,-150.0,0.00011999,2]
[326922934,1715589032072,-5000.0,0.00012,2]
[326922935,1715589032081,-150.99,0.00012,2]
[326922936,1715589032090,-499.99,0.0001204,2]
[326922937,1715589032099,-158.33,0.00012103,2]
[326922938,1715589032109,-868.43,0.000122,2]
[326922939,1715589032118,-158.33,0.00012257,2]
[326922940,1715589032128,-158.33,0.0001241,2]
[326922941,1715589032138,-2415.246,0.00012602,2]
[326922942,1715589032148,-2696.1688,0.0001265,2]
[326922943,1715589032158,-242.87,0.0001265,2]
[326922944,1715589032167,-191.22905209,0.00012652,2]
[326922945,1715589032177,-150.0,0.00012744,2]
[326922946,1715589032186,-2840.25892,0.0001275,2]
[326922947,1715589032197,-203.78399647,0.00012751,2]
[326922948,1715589032206,-500.0,0.00012777,2]
[326922949,1715589032215,-10449.1598497,0.00012779,2]
[326922950,1715589032231,-2197.43192544,0.00012779,2]
[326922951,1715589032241,-84.03152968,0.0001278,2]
[326922952,1715589032254,-122.31431267,0.0001278,2]
[326922953,1715589032264,-5763.8297,0.0001278,2]
[326922954,1715589032274,-3461.879,0.0001278,2]
[326922955,1715589032284,-439.619,0.0001278,2]
[326922956,1715589032293,-4319.3466,0.0001278,2]
[326922957,1715589032303,-206.34584235,0.00012791,2]
[326922958,1715589032313,-4291.50870824,0.000128,2]
[326922959,1715589032330,-708.49129176,0.000128,2]
[326922960,1715589032339,-124.86872656,0.000128,2]
[326922961,1715589032350,-173.89409893,0.000128,2]
[326922962,1715589032359,-206.34584235,0.00012802,2]
[326922963,1715589032368,-156.88022056,0.00012813,2]
[326922964,1715589032793,-49.46562179,0.00012813,2]
[326922965,1715589032803,-206.34584235,0.00012824,2]
[326922966,1715589032812,-206.34584235,0.00012835,2]
[326922967,1715589032826,-206.34584235,0.00012845,2]
[326922968,1715589032836,-206.34584235,0.00012856,2]
[326922969,1715589032845,-206.34584235,0.00012867,2]
[326922970,1715589032854,-153.28546405,0.0001287,2]
[326922971,1715589032866,-24.74849708,0.0001287,2]
[326922972,1715589032876,-428.20829024,0.00012872,2]
[326922973,1715589032891,-243.18749239,0.00012874,2]
[326922974,1715589032901,-155.0,0.00012875,2]
[326922975,1715589032910,-3617.03,0.00012875,2]
[326922976,1715589032920,-500.0,0.00012876,2]
[326922977,1715589032930,-182.63908818,0.00012876,2]
[326922979,1715589032939,-500.0,0.00012876,2]
[326922981,1715589032949,-500.0,0.00012876,2]
[326922983,1715589032958,-500.0,0.00012876,2]
[326922985,1715589032969,-304.32407033,0.00012876,2]
[326922986,1715589032979,-500.0,0.00012876,2]
[326922988,1715589032989,-500.0,0.00012876,2]
[326922990,1715589032998,-500.0,0.00012876,2]
[326922992,1715589033008,-10444.86256178,0.00012876,2]
[326922994,1715589033020,-657.25,0.00012876,2]
[326922998,1715589033031,-623.17277901,0.00012876,2]
[326923021,1715589033240,-8232.01,0.00012876,2]
[326923024,1715589033252,-705.76,0.00012876,2]
[326923026,1715589033265,-3364.75728071,0.00012876,2]
[326923075,1715589037991,-275.96458678,0.00012014,2]
[326923076,1715589038004,-584.35820668,0.00012014,2]
[326923077,1715589038016,-486.83097929,0.00012014,2]
[326923078,1715589038028,-324.95664198,0.00012014,2]
[326923079,1715589038049,-4308.03824832,0.00012014,2]
[326923080,1715589038059,-96287.32943166,0.00012876,2]
[326923081,1715589038072,-607778.81224732,0.00012876,2]
[326923082,1715589038122,-662.01824724,0.00012876,2]
[326923083,1715589038134,-3499.8,0.00012876,2]
[326923084,1715589038145,-125718.78959457,0.00012876,2]
[326923085,1715589038157,-6563.34065266,0.00012876,2]
[326923086,1715589038180,-568.59559293,0.00012876,2]
[326923087,1715589038239,-362.26956143,0.00012876,2]
[326923088,1715589038251,-1573.50396478,0.00012876,2]
[326923089,1715589038296,-328.92787868,0.00012876,2]
[326923090,1715589038308,-1229.7413409,0.00012876,2]
[326923091,1715589038352,-1490.7756,0.00012876,2]
[326923092,1715589038363,-2475.66949071,0.00012876,2]
[326923110,1715589040225,-307.24967316,0.00012876,2]
[326923111,1715589040237,-1259.84,0.00012876,2]
[326923112,1715589040249,-568.37329392,0.00012876,2]
[326923113,1715589040291,-296.9811772,0.00012876,2]
[326923114,1715589040353,-477.73168315,0.00012876,2]
[326923115,1715589040653,-626.56,0.00012876,2]
[326923116,1715589040666,-8165.80375038,0.00012876,2]
[326923117,1715589040714,-15128.21287331,0.00012876,2]
[326923118,1715589040726,-959.52113714,0.00012876,2]
[326923119,1715589040774,-532.11794289,0.00012876,2]
[326923143,1715589043209,-6735.09349271,0.00012876,2]
[326923144,1715589043401,-3018.66939835,0.00012876,2]
[326923145,1715589043413,-417.07270986,0.00012876,2]
[326923146,1715589043429,-633.265,0.00012876,2]
[326923150,1715589046251,-408.95951044,0.00012875,2]
[326923151,1715589046262,-5749.18573541,0.00012875,2]
[326923152,1715589046273,-380.84339311,0.00012875,2]
[326923153,1715589046283,-9714.6804402,0.00012876,2]
[326923154,1715589046294,-7140.24267717,0.00012876,2]
[326923155,1715589046318,-1001.69816861,0.00012876,2]
[326923156,1715589046330,-46938.46320361,0.00012876,2]
[326923157,1715589046343,-1401.88980761,0.00012876,2]
[326923349,1715589175487,-682.56,0.00011896,2]
[326923351,1715589250147,3317.44,0.00011896,2]
[326923352,1715589250172,4000.0,0.00011896,2]
[326923353,1715589250195,4000.0,0.00011896,2]
[326923354,1715589250218,4000.0,0.00011896,2]
[326923355,1715589250241,4000.0,0.00011896,2]
[326923356,1715589306003,-200.0,0.00011869,2]
[326923357,1715589306025,-476.19200871,0.00011886,2]
[326923358,1715589306047,-155.0,0.00011895,2]
[326923359,1715589306070,-3168.80799129,0.00011895,2]
[326923360,1715589308326,-4000.0,0.00011895,2]
[326923361,1715589309599,-342.63505129,0.00011895,2]
[326923362,1715589309622,-3657.36494871,0.00011896,2]
[326923363,1715589311184,-4000.0,0.00011896,2]
[326923364,1715589312873,-4000.0,0.00011896,2]
[326923365,1715589333771,-250.0,0.00011853,2]
[326923366,1715589333794,-3750.0,0.00011896,2]
[326923367,1715589334356,-4000.0,0.00011896,2]
[326923368,1715589353603,-166.38,0.0001185,2]
[326923369,1715589353626,-3833.62,0.00011896,2]
[326923370,1715589354542,-4000.0,0.00011896,2]
[326923371,1715589354794,-4000.0,0.00011896,2]
[326923372,1715589355197,-4000.0,0.00011896,2]
[326923373,1715589355835,-4000.0,0.00011896,2]
[326923374,1715589356382,-4000.0,0.00011896,2]
[326923375,1715589356953,-4000.0,0.00011849,2]
[326923376,1715589357501,-712.79574528,0.00011849,2]
[326923377,1715589357523,-3287.20425472,0.00011896,2]
[326923378,1715589358020,-4000.0,0.00011896,2]
[326923379,1715589358561,-4000.0,0.00011896,2]
[326923380,1715589406244,-231.37,0.00011848,2]
[326923381,1715589406269,-174.89,0.0001185,2]
[326923382,1715589406292,-155.13236369,0.00011894,2]
[326923383,1715589406318,-623.01390858,0.00011894,2]
[326923384,1715589406343,-155.09014586,0.00011894,2]
[326923385,1715589406367,-266.10096852,0.00011894,2]
[326923386,1715589406391,-155.0,0.00011895,2]
[326923387,1715589406414,-155.24241743,0.00011895,2]
[326923388,1715589406439,-2084.16019592,0.00011896,2]
[326923389,1715589407674,-4000.0,0.00011896,2]
[326923390,1715589409110,-3845.0,0.00011895,2]
[326923391,1715589409132,-155.0,0.00011896,2]
[326923392,1715589410359,-4000.0,0.00011896,2]
[326923394,1715589441434,331.17,0.00010959,2]
[326923395,1715589451877,269.15516215,0.00010705,2]
[326923396,1715589452830,362.42260068,0.00010959,2]
[326923397,1715589465444,192.79,9.446e-05,2]
[326923400,1715589476691,2206.58710097,0.00010959,2]
[326923401,1715589476718,505870.59200926,0.00010959,2]
[326923412,1715589586410,10000.0,0.00025,120]
[326923417,1715589628858,305.81337753,0.00025,120]
[326923420,1715589677793,458.29057155,0.00011365,2]
[326923422,1715589690264,882.82313316,0.00011405,2]
[326923423,1715589691466,260.43000328,0.00011405,2]
[326923424,1715589697957,217.22853735,0.00011405,2]
[326923425,1715589703790,237.32200018,0.00011405,2]
[326923426,1715589716528,155.0,0.00011405,2]
[326923427,1715589717666,522.34511818,0.00011405,2]
[326923428,1715589778045,152.0,0.0001557,49]
[326923429,1715589778271,152.0,0.00015516,48]
[326923430,1715589778663,152.0,0.00015462,47]
[326923431,1715589779008,152.0,0.00015409,46]
[326923432,1715589779358,152.0,0.00015355,45]
[326923434,1715589779832,152.0,0.00015301,44]
[326923435,1715589780192,152.0,0.00015247,43]
[326923436,1715589780571,152.0,0.00015194,42]
[326923437,1715589781542,152.0,0.0001514,41]
[326923438,1715589781896,152.0,0.00015086,40]
[326923439,1715589782266,152.0,0.00015032,39]
[326923440,1715589782637,152.0,0.00014979,38]
[326923441,1715589782982,152.0,0.00014925,37]
[326923442,1715589783548,152.0,0.00014871,36]
[326923443,1715589783901,152.0,0.00014817,35]
[326923444,1715589784331,152.0,0.00014764,34]
[326923445,1715589784682,152.0,0.0001471,33]
[326923446,1715589785205,152.0,0.00014656,32]
[326923447,1715589785563,152.0,0.00014602,31]
[326923448,1715589785906,152.0,0.00014549,30]
[326923449,1715589831612,240.996913,0.00011351,2]
[326923452,1715589943984,217.22853735,0.00011406,2]
[326923453,1715589955497,260.43000328,0.00011406,2]
[326923455,1715590118558,14092.63,0.00011372,2]
[326923457,1715590131706,200.0,0.00011378,2]
[326923464,1715590160914,882.82313316,0.00011406,2]
[326923492,1715590232474,-260.43000328,0.00011408,2]
[326923493,1715590232485,-1190.7634967,0.00011409,2]
[326923495,1715590232704,-1728.35960644,0.00011409,2]
[326923496,1715590232715,-546.05,0.00011423,2]
[326923497,1715590232724,-491.57,0.00011455,2]
[326923498,1715590232734,-416.43,0.00011476,2]
[326923499,1715590232743,-160.72,0.00011492,2]
[326923500,1715590232751,-168.19,0.00011509,2]
[326923501,1715590232760,-165.33,0.00011543,2]
[326923502,1715590232770,-218.41482516,0.00011587,2]
[326923503,1715590232799,-9753.61891126,0.00011587,2]
[326923504,1715590232809,-458.00445399,0.0001159,2]
[326923505,1715590232819,-250.0,0.00011635,2]
[326923506,1715590232828,-197.6,0.00011635,2]
[326923507,1715590232837,-250.0,0.00011663,2]
[326923508,1715590232846,-453.95,0.00011676,2]
[326923509,1715590232856,-344.14475486,0.00011894,2]
[326923510,1715590232865,-155.0,0.00011894,2]
[326923511,1715590232874,-515.84116148,0.00011894,2]
[326923513,1715590232884,-200.77628892,0.00011894,2]
[326923515,1715590232894,-1213.37270844,0.00011894,2]
[326923517,1715590232902,-155.26275148,0.00011894,2]
[326923519,1715590232911,-155.0,0.00011895,2]
[326923521,1715590232920,-594.4474837,0.00011896,2]
[326923523,1715590232930,-409.94933149,0.00012054,2]
[326923525,1715590232939,-5000.0,0.00012054,2]
[326923527,1715590232948,-868.86,0.00012055,2]
[326923529,1715590232958,-868.86,0.00012055,2]
[326923531,1715590232969,-150.0,0.00012078,2]
[326923533,1715590232978,-868.86,0.000121,2]
[326923535,1715590232987,-150.0,0.000121,2]
[326923537,1715590232996,-868.86,0.000121,2]
[326923539,1715590233005,-868.86,0.000121,2]
[326923541,1715590233015,-868.86,0.00012141,2]
[326923543,1715590233024,-858.37,0.00012141,2]
[326923545,1715590233033,-868.86,0.00012141,2]
[326923547,1715590233043,-868.86,0.00012141,2]
[326923549,1715590233052,-150.0,0.00012178,2]
[326923551,1715590233061,-163.31,0.00012192,2]
[326923552,1715590233071,-150.0,0.00012192,2]
[326923553,1715590233080,-379.2,0.00012192,2]
[326923554,1715590233089,-150.0,0.00012192,2]
[326923555,1715590233099,-150.0,0.00012192,2]
[326923557,1715590233108,-163.31,0.00012192,2]
[326923559,1715590233117,-162.67,0.00012192,2]
[326923561,1715590233126,-351.48,0.00012192,2]
[326923563,1715590233135,-150.0,0.00012192,2]
[326923565,1715590233144,-419.56,0.00012192,2]
[326923567,1715590233153,-150.0,0.00012192,2]
[326923568,1715590233163,-300.0,0.00012192,2]
[326923570,1715590233172,-351.48,0.00012192,2]
[326923572,1715590233181,-150.0,0.00012192,2]
[326923574,1715590233191,-265.1,0.00012192,2]
[326923577,1715590233201,-868.86,0.000122,2]
[326923578,1715590233210,-7931.37776788,0.00012234,7]
[326923580,1715590233220,-351.48,0.00012278,2]
[326923582,1715590233229,-300.0,0.00012278,2]
[326923584,1715590233238,-420.36,0.00012278,2]
[326923585,1715590233249,-300.0,0.00012278,2]
[326923586,1715590233259,-150.0,0.00012278,2]
[326923587,1715590233269,-351.48,0.00012278,2]
[326923588,1715590233282,-150.0,0.00012278,2]
[326923589,1715590233292,-420.36,0.00012278,2]
[326923590,1715590233301,-150.0,0.00012278,2]
[326923591,1715590233312,-420.36,0.00012278,2]
[326923592,1715590233322,-1714.9,0.00012592,2]
[326923593,1715590233331,-178.0,0.00012592,2]
[326923594,1715590233341,-1697.74513184,0.000126,2]
[326923595,1715590233352,-252.85452482,0.00012745,2]
[326923597,1715590233361,-2366.88243,0.0001275,2]
[326923599,1715590233371,-196.87221884,0.00012751,2]
[326923601,1715590233380,-200.0,0.00012776,2]
[326923603,1715590233389,-1000.0,0.00012776,2]
[326923605,1715590233399,-200.0,0.00012777,2]
[326923607,1715590233408,-200.0,0.00012777,2]
[326923609,1715590233417,-1000.0,0.00012777,2]
[326923611,1715590233426,-1000.0,0.00012777,2]
[326923613,1715590233437,-500.0,0.00012777,2]
[326923615,1715590233446,-617.93,0.0001278,2]
[326923617,1715590233456,-1000.0,0.0001278,2]
[326923618,1715590233466,-8226.3603,0.0001278,2]
[326923620,1715590233476,-488.52176915,0.0001278,2]
[326923621,1715590233486,-173.54433881,0.0001278,2]
[326923622,1715590233495,-488.5217691,0.00012791,2]
[326923623,1715590233505,-488.5217691,0.00012802,2]
[326923624,1715590233514,-488.5217691,0.00012813,2]
[326923625,1715590233525,-1562.13781289,0.00012813,2]
[326923626,1715590233535,-488.5217691,0.00012824,2]
[326923627,1715590233544,-3502.68349513,0.00012827,2]
[326923628,1715590233554,-488.5217691,0.00012835,2]
[326923629,1715590233563,-488.5217691,0.00012845,2]
[326923630,1715590233572,-171230.71198552,0.0001285,5]
[326923631,1715590233581,-546.05,0.00012851,2]
[326923632,1715590233590,-488.5217691,0.00012856,2]
[326923633,1715590233600,-488.5217691,0.00012867,2]
[326923634,1715590233609,-155.0,0.00012874,2]
[326923635,1715590233618,-165.91738265,0.00012875,2]
[326923636,1715590233627,-1116.81312458,0.00012875,2]
[326923637,1715590233636,-155.0,0.00012875,2]
[326923638,1715590233645,-586.94146838,0.00012876,2]
[326923639,1715590233654,-307.55,0.00012876,2]
[326923640,1715590233668,-589.84725396,0.00012876,2]
[326923641,1715590233677,-384.85160257,0.00012876,2]
[326923642,1715590233687,-291.64091069,0.00012876,2]
[326923643,1715590233696,-618.26,0.00012876,2]
[326923644,1715590233706,-219.62880007,0.00012876,2]
[326923645,1715590233716,-625.56,0.00012876,2]
[326923646,1715590233726,-2074.24,0.00012876,2]
[326923647,1715590233735,-276.50969387,0.00012876,2]
[326923648,1715590233744,-362.2893167,0.00012876,2]
[326923649,1715590233754,-500.0,0.00012876,2]
[326923650,1715590233763,-208.34,0.00012876,2]
[326923651,1715590233772,-500.0,0.00012876,2]
[326923652,1715590233781,-565.8,0.00012876,2]
[326923653,1715590233791,-630.575,0.00012876,2]
[326923654,1715590233800,-500.0,0.00012876,2]
[326923655,1715590233810,-500.0,0.00012876,2]
[326923656,1715590233819,-659.04,0.00012876,2]
[326923657,1715590233829,-384.2222655,0.00012878,2]
[326923658,1715590233838,-182.40170976,0.00012878,2]
[326923659,1715590233848,-572.27447341,0.00012878,7]
[326923660,1715590233857,-163.09696048,0.00012878,2]
[326923661,1715590233868,-692.02231962,0.00012878,2]
[326923662,1715590233877,-155.45188947,0.00012878,2]
[326923663,1715590233887,-155.87069556,0.00012878,2]
[326923664,1715590233897,-192.61968187,0.00012878,2]
[326923665,1715590233906,-276.75517959,0.00012878,2]
[326923666,1715590233916,-267.89531828,0.00012878,2]
[326923667,1715590233925,-590.67911507,0.00012878,2]
[326923668,1715590233935,-195.24381204,0.00012878,2]
[326923669,1715590233944,-155.35229815,0.00012878,2]
[326923670,1715590233953,-221.77070134,0.00012878,2]
[326923671,1715590233964,-502.61297714,0.00012878,2]
[326923672,1715590233973,-169.93921688,0.00012878,2]
[326923673,1715590233982,-5269.99465171,0.00012878,2]
[326923674,1715590233992,-479.21760334,0.00012878,2]
[326923675,1715590234006,-163.73486331,0.00012878,2]
[326923676,1715590234015,-165.88333802,0.00012878,2]
[326923677,1715590234434,-163.55737418,0.00012878,2]
[326923678,1715590234443,-524.5933955,0.00012878,2]
[326923679,1715590234452,-65.83624735,0.00012878,2]
[326923712,1715590238127,-151.70955627,0.00012878,2]
[326923714,1715590238137,-497.84044373,0.00012878,2]
[326923721,1715590238354,-316.295,0.00012878,2]
[326923722,1715590238366,-68.32072666,0.00012878,2]
[326923723,1715590238375,-488.5217691,0.00012878,2]
[326923724,1715590238384,-102.15750324,0.00012879,2]
[326923823,1715590240316,-313.65922066,0.0001278,2]
[326923824,1715590240326,-114.42889204,0.00012879,2]
[326923825,1715590240337,-16.65679176,0.00012879,2]
[326923826,1715590240348,-673.27417519,0.00012879,2]
[326923827,1715590240673,-1129.78527591,0.00012879,2]
[326923828,1715590240683,-530.14201946,0.00012879,2]
[326923829,1715590240692,-417.81385542,0.00012879,2]
[326923830,1715590240702,-220.0,0.00012879,2]
[326923831,1715590240711,-625.56,0.00012879,2]
[326923832,1715590240722,-625.56,0.00012879,2]
[326923833,1715590240731,-625.56,0.00012879,2]
[326923834,1715590240740,-625.56,0.00012879,2]
[326923835,1715590240749,-625.56,0.00012879,2]
[326923836,1715590240759,-625.56,0.00012879,2]
[326923837,1715590240768,-327.69884921,0.00012879,2]
[326923838,1715590240780,-1746.54115079,0.00012879,2]
[326923839,1715590240790,-966.16394475,0.00012879,2]
[326923878,1715590243534,-1108.07605525,0.00012879,2]
[326923879,1715590243543,-1696.48850743,0.00012879,2]
[326923892,1715590246566,-627.412,0.00012878,2]
[326923893,1715590246662,-661.72323052,0.00012878,2]
[326923894,1715590252898,9824.98894445,0.00011406,2]
[326923895,1715590260141,480.01869346,0.00011406,2]
[326923897,1715590305055,155.0,0.00011406,2]
[326923898,1715590316992,156.09298751,0.00011406,2]
[326923901,1715590644742,452.90555605,0.00025,120]
[326923902,1715590670143,452.90555572,0.00025,120]
[326923903,1715590716644,452.90555572,0.00025,120]
[326923904,1715590752406,-882.82313316,0.00011756,2]
[326923905,1715590764715,1039.81,0.00011757,2]
[326923906,1715590876104,260.43000328,0.00011756,2]
[326923908,1715591096104,331.17,0.00010959,2]
[326923909,1715591099919,269.15516215,0.00011563,2]
[326923910,1715591100998,362.42260068,0.00011756,2]